bitfinex/quotes_SOLUSD_20241222
["timestamp","ask_amount","ask_price","bid_price","bid_amount"]
[1734827207826,1.03311801,181.5,181.36,31.26765808]
[1734827207997,2.7549,181.49,181.36,31.26765808]
[1734827208332,1.03345529,181.48,181.36,31.26765808]
[1734827208710,1.03334414,181.5,181.4,31.26765808]
[1734827209112,21.03327839,181.51,181.4,31.26765808]
[1734827209414,21.03327839,181.51,181.41,23.776884]
[1734827210022,21.03327839,181.51,181.4,31.26765808]
[1734827211709,23.78807839,181.51,181.37,31.26765808]
[1734827212214,23.78807839,181.51,181.38,23.776884]
[1734827212415,23.78807839,181.51,181.39,31.26765808]
[1734827214723,23.78807839,181.51,181.28,12.2556]
[1734827214724,20.0,181.47,181.33,31.26765808]
[1734827214930,1.03367868,181.46,181.33,31.26765808]
[1734827215133,20.0,181.42,181.31,31.26765808]
[1734827215434,1.033812,181.41,181.31,31.26765808]
[1734827215605,1.03370984,181.44,181.34,31.26765808]
[1734827215806,6.0758,181.45,181.34,31.26765808]
[1734827216034,6.0758,181.45,181.36,31.26765808]
[1734827216222,6.0758,181.45,181.37,23.776884]
[1734827217327,6.0758,181.45,181.36,31.26765808]
[1734827217630,3.78913628,181.44,181.32,31.26765808]
[1734827217826,20.0,181.42,181.32,31.26765808]
[1734827218001,1.03374955,181.41,181.32,31.26765808]
[1734827218820,1.03369911,181.44,181.32,31.26765808]
[1734827219026,1.03369911,181.44,181.34,31.26765808]
[1734827220338,1.03369911,181.44,181.32,31.26765808]
[1734827220339,20.0,181.42,181.32,31.26765808]
[1734827221646,6.0758,181.45,181.34,31.26765808]
[1734827221935,6.0758,181.45,181.4,31.26765808]
[1734827222340,6.0758,181.45,181.38,31.26765808]
[1734827222514,6.0758,181.45,181.39,23.776884]
[1734827222916,6.0758,181.45,181.4,31.26765808]
[1734827223145,6.3405,181.51,181.42,31.26765808]
[1734827223438,1.03310562,181.5,181.4,31.26765808]
[1734827223622,6.3405,181.51,181.41,23.776884]
[1734827223820,6.3405,181.51,181.42,31.26765808]
[1734827224641,1.03314222,181.5,181.4,31.26765808]
[1734827224837,6.3405,181.51,181.41,23.776884]
[1734827225138,6.3405,181.51,181.42,31.26765808]
[1734827225348,6.3405,181.51,181.43,23.776884]
[1734827226910,6.3405,181.51,181.4,31.26765808]
[1734827226911,1.03306531,181.5,181.4,31.26765808]
[1734827227117,1.03306531,181.5,181.32,6.3359]
[1734827227118,20.0,181.48,181.37,31.26765808]
[1734827227339,1.03339489,181.47,181.35,31.26765808]
[1734827227528,1.03339489,181.47,181.33,31.26765808]
[1734827228015,1.03339489,181.47,181.37,31.26765808]
[1734827228221,20.3747,181.48,181.37,31.26765808]
[1734827228514,20.0,181.48,181.39,31.26765808]
[1734827229241,1.03328709,181.47,181.38,31.26765808]
[1734827229647,20.0,181.48,181.38,31.26765808]
[1734827229945,1.0333314,181.47,181.38,31.26765808]
[1734827230153,1.0333314,181.47,181.36,23.776884]
[1734827230154,1.0333314,181.47,181.37,31.26765808]
[1734827231923,3.7886314,181.47,181.35,31.26765808]
[1734827232127,6.5507,181.42,181.3,31.26765808]
[1734827232447,1.03380817,181.41,181.3,31.26765808]
[1734827232629,20.0,181.39,181.3,31.26765808]
[1734827232829,6.5507,181.42,181.32,31.26765808]
[1734827233015,6.5507,181.42,181.38,31.26765808]
[1734827233217,6.5507,181.5,181.4,31.26765808]
[1734827233451,6.5507,181.5,181.42,31.26765808]
[1734827234650,6.5507,181.5,181.43,23.776884]
[1734827234948,6.5507,181.5,181.43,55.04454208]
[1734827235445,6.5507,181.5,181.43,23.776884]
[1734827235634,6.5507,181.56,181.46,23.776884]
[1734827235835,6.5507,181.56,181.49,31.26765808]
[1734827236150,6.5507,181.61,181.53,31.26765808]
[1734827236325,6.5507,181.61,181.52,31.26765808]
[1734827236521,6.5507,181.61,181.55,31.26765808]
[1734827237946,6.5507,181.61,181.53,31.26765808]
[1734827238148,6.5507,181.61,181.5,0.12549]
[1734827238149,6.5507,181.61,181.51,31.26765808]
[1734827238829,6.5507,181.61,181.53,31.26765808]
[1734827239325,1.03249024,181.6,181.49,31.26765808]
[1734827239546,1.03249024,181.6,181.5,23.776884]
[1734827240041,20.0,181.58,181.46,31.26765808]
[1734827240228,1.03284882,181.57,181.47,31.26765808]
[1734827240436,1.0327278,181.57,181.47,31.26765808]
[1734827240628,1.0327278,181.57,181.45,31.26765808]
[1734827240837,1.0327278,181.57,181.43,31.26765808]
[1734827241632,2.7539,181.56,181.45,31.26765808]
[1734827241820,2.7539,181.56,181.44,31.26765808]
[1734827241821,1.03291957,181.55,181.44,31.26765808]
[1734827242457,20.0,181.56,181.45,31.26765808]
[1734827242630,20.0,181.58,181.5,31.26765808]
[1734827242829,6.5507,181.61,181.51,31.26765808]
[1734827243154,1.03253541,181.6,181.51,31.26765808]
[1734827243451,6.5507,181.61,181.5,31.26765808]
[1734827243639,7.58325705,181.61,181.51,55.04454208]
[1734827244257,6.5507,181.61,181.53,23.776884]
[1734827244461,6.5507,181.61,181.53,55.04454208]
[1734827244649,6.5507,181.67,181.56,31.26765808]
[1734827244831,6.5507,181.67,181.59,23.776884]
[1734827245028,6.5507,181.67,181.59,55.04454208]
[1734827245356,6.5507,181.67,181.52,1.6629]
[1734827245357,6.5507,181.67,181.58,31.26765808]
[1734827245955,6.5507,181.67,181.57,31.26765808]
[1734827246159,6.5507,181.67,181.56,31.26765808]
[1734827246362,1.03221629,181.66,181.57,23.776884]
[1734827246658,20.0,181.64,181.57,23.776884]
[1734827246866,6.5507,181.67,181.58,31.26765808]
[1734827247158,20.0,181.64,181.58,31.26765808]
[1734827247462,20.0,181.64,181.57,23.776884]
[1734827248290,1.03231134,181.63,181.53,55.04454208]
[1734827248555,1.03231134,181.63,181.53,31.26765808]
[1734827248741,1.03231134,181.63,181.52,31.26765808]
[1734827250028,20.0,181.62,181.5,31.26765808]
[1734827250253,20.0,181.62,181.52,31.26765808]
[1734827250459,20.0,181.62,181.53,31.26765808]
[1734827250641,22.7528,181.64,181.53,31.26765808]
[1734827250845,20.0,181.64,181.54,31.26765808]
[1734827251241,1.03235769,181.63,181.53,31.26765808]
[1734827251446,21.03235769,181.63,181.52,31.26765808]
[1734827251758,21.03235769,181.63,181.53,23.776884]
[1734827251952,1.03235769,181.63,181.52,31.26765808]
[1734827252158,20.0,181.62,181.48,31.26765808]
[1734827252355,3.78588992,181.61,181.47,31.26765808]
[1734827253767,2.7526,181.65,181.53,55.04454208]
[1734827253942,1.03239199,181.64,181.53,55.04454208]
[1734827254262,1.03239199,181.64,181.53,23.776884]
[1734827254478,1.03239199,181.64,181.53,55.04454208]
[1734827255170,21.03239199,181.64,181.53,55.04454208]
[1734827255877,2.7528,181.63,181.51,31.26765808]
[1734827256176,1.03257581,181.62,181.52,31.26765808]
[1734827256353,1.03257581,181.62,181.51,31.26765808]
[1734827256978,3.78540339,181.63,181.53,31.26765808]
[1734827257144,20.0,181.64,181.54,31.26765808]
[1734827258072,1.03260339,181.66,181.56,31.26765808]
[1734827258240,1.03260339,181.66,181.57,31.26765808]
[1734827258441,6.5507,181.67,181.59,31.26765808]
[1734827258783,6.5507,181.67,181.6,31.26765808]
[1734827259151,1.032186,181.66,181.58,31.26765808]
[1734827259468,1.032186,181.66,181.56,31.26765808]
[1734827260176,20.0,181.64,181.56,31.26765808]
[1734827260779,20.0,181.64,181.57,31.26765808]
[1734827260942,20.0,181.64,181.58,31.26765808]
[1734827261144,6.5507,181.67,181.58,31.26765808]
[1734827261875,7.58286993,181.67,181.57,31.26765808]
[1734827262375,20.0,181.64,181.52,31.26765808]
[1734827262550,1.03256535,181.63,181.52,31.26765808]
[1734827262752,1.03256535,181.63,181.49,31.26765808]
[1734827262974,2.753,181.62,181.49,31.26765808]
[1734827263146,1.0327576,181.61,181.48,31.26765808]
[1734827263472,1.0327576,181.61,181.49,31.26765808]
[1734827263764,1.03273089,181.63,181.52,31.26765808]
[1734827263966,1.03273089,181.63,181.47,13.7763]
[1734827263967,1.03250543,181.64,181.56,31.26765808]
[1734827264172,1.03250543,181.66,181.57,31.26765808]
[1734827265469,6.5507,181.67,181.6,31.26765808]
[1734827266141,6.5507,181.67,181.61,23.776884]
[1734827267368,0.7038361,181.68,181.64,23.776884]
[1734827267567,0.7038361,181.68,181.64,55.04454208]
[1734827268846,0.7038361,181.68,181.63,31.26765808]
[1734827269165,0.7038361,181.68,181.62,31.26765808]
[1734827270156,0.7038361,181.68,181.61,55.04454208]
[1734827270479,0.7038361,181.68,181.62,31.26765808]
[1734827271685,0.7038361,181.68,181.61,55.04454208]
[1734827272084,0.7038361,181.68,181.6,31.26765808]
[1734827272587,0.7038361,181.68,181.65,31.26765808]
[1734827272768,0.7038361,181.68,181.66,31.26765808]
[1734827273086,0.7038361,181.68,181.67,55.17003208]
[1734827274074,0.7038361,181.68,181.67,68.93123208]
[1734827274282,6.3693,181.83,181.7,20.0]
[1734827274479,6.3693,181.83,181.76,31.26765808]
[1734827274696,6.3693,181.83,181.77,23.776884]
[1734827275590,6.3693,181.83,181.77,55.04454208]
[1734827275760,0.7038361,181.86,181.79,55.04454208]
[1734827275956,0.7038361,181.86,181.71,2.2293846]
[1734827276194,0.7038361,181.86,181.78,23.776884]
[1734827277301,0.7038361,181.86,181.77,31.26765808]
[1734827277464,1.03105514,181.85,181.74,31.26765808]
[1734827277664,1.03105514,181.85,181.75,31.26765808]
[1734827278267,20.0,181.85,181.76,55.04454208]
[1734827278465,0.7038361,181.86,181.8,31.26765808]
[1734827278670,0.7038361,181.86,181.81,31.26765808]
[1734827278982,0.7038361,181.86,181.8,31.26765808]
[1734827280176,0.7038361,181.86,181.77,31.26765808]
[1734827280358,0.7038361,181.86,181.78,31.26765808]
[1734827280561,0.7038361,181.86,181.79,31.26765808]
[1734827280802,0.7038361,181.86,181.78,31.26765808]
[1734827282385,0.7038361,181.86,181.8,31.26765808]
[1734827286110,20.0,181.85,181.75,31.26765808]
[1734827287098,1.03120095,181.84,181.75,31.26765808]
[1734827287300,1.03120095,181.84,181.72,31.26765808]
[1734827287681,0.7038361,181.86,181.83,31.26765808]
[1734827287883,0.3747,182.03,181.85,31.26765808]
[1734827287884,6.3693,182.02,181.85,31.26765808]
[1734827288198,6.3693,182.02,181.94,31.26765808]
[1734827288364,6.3693,182.02,181.96,31.26765808]
[1734827288692,9.25991274,182.04,181.98,31.26765808]
[1734827288901,0.7038361,182.04,181.98,31.26765808]
[1734827289101,0.7038361,182.04,181.94,31.26765808]
[1734827290198,0.7038361,182.04,181.96,31.26765808]
[1734827293712,0.7038361,182.04,181.84,23.776884]
[1734827293713,1.03006577,182.03,181.94,31.26765808]
[1734827294607,3.77676577,182.03,181.94,31.26765808]
[1734827294809,0.3747,182.02,181.87,31.26765808]
[1734827294990,20.0,181.97,181.87,31.26765808]
[1734827295195,1.03066655,181.96,181.87,31.26765808]
[1734827295607,1.03066655,181.96,181.85,31.26765808]
[1734827296425,1.03066655,181.96,181.78,13.7521]
[1734827296426,2.748,181.95,181.83,31.26765808]
[1734827296584,1.03086431,181.94,181.83,31.26765808]
[1734827296779,1.03086431,181.94,181.81,31.26765808]
[1734827297780,20.0,181.92,181.81,31.26765808]
[1734827298016,1.03098535,181.91,181.81,31.26765808]
[1734827298916,1.03099111,181.9,181.81,31.26765808]
[1734827299219,20.0,181.86,181.77,31.26765808]
[1734827299426,1.03119848,181.85,181.77,31.26765808]
[1734827299792,1.03119848,181.85,181.75,31.26765808]
[1734827300497,20.0,181.86,181.79,31.26765808]
[1734827301097,6.4776,181.89,181.81,31.26765808]
[1734827302117,6.4776,181.89,181.83,31.26765808]
[1734827304114,6.4776,181.89,181.85,31.26765808]
[1734827304320,6.4776,181.89,181.83,31.26765808]
[1734827306213,7.66589655,181.94,181.85,31.26765808]
[1734827307720,7.66589655,181.94,181.83,31.26765808]
[1734827308229,20.0,181.91,181.83,31.26765808]
[1734827309124,20.0,181.91,181.85,31.26765808]
[1734827309827,7.66589655,181.94,181.85,31.26765808]
[1734827310434,6.6351,181.94,181.85,31.26765808]
[1734827310932,1.03064295,181.93,181.85,31.26765808]
[1734827311239,7.66574295,181.94,181.85,31.26765808]
[1734827311729,6.6351,181.94,181.85,31.26765808]
[1734827311930,7.66574923,181.94,181.85,31.26765808]
[1734827312634,6.6351,181.94,181.87,31.26765808]
[1734827314134,1.03064536,181.93,181.85,31.26765808]
[1734827315537,6.6351,181.94,181.85,31.26765808]
[1734827316337,7.31565113,181.99,181.89,31.26765808]
[1734827316515,7.3153555,181.99,181.91,31.26765808]
[1734827316713,6.2849,181.99,181.93,31.26765808]
[1734827323142,4.48071858,182.04,181.93,31.26765808]
[1734827323641,20.0,182.03,181.93,31.26765808]
[1734827323815,1.03026334,182.02,181.93,31.26765808]
[1734827324007,1.03026437,182.03,181.93,31.26765808]
[1734827324208,21.03026437,182.03,181.93,31.26765808]
[1734827324845,20.0,182.03,181.95,31.26765808]
[1734827325214,0.7038361,182.04,181.95,31.26765808]
[1734827325749,1.03009155,182.03,181.95,31.26765808]
[1734827326634,21.03009155,182.03,181.93,31.26765808]
[1734827329547,23.77699155,182.03,181.93,31.26765808]
[1734827331777,20.0,181.99,181.91,31.26765808]
[1734827331953,1.03050716,181.98,181.89,31.26765808]
[1734827332154,0.3747,181.96,181.85,31.26765808]
[1734827332376,20.0,181.94,181.84,31.26765808]
[1734827332652,20.0,181.94,181.82,31.26765808]
[1734827332653,1.03088953,181.93,181.82,31.26765808]
[1734827332985,1.03088953,181.93,181.81,31.26765808]
[1734827333681,2.7484,181.92,181.81,31.26765808]
[1734827333861,1.03100849,181.91,181.82,31.26765808]
[1734827334486,1.03100849,181.91,181.81,31.26765808]
[1734827335088,1.03100849,181.91,181.77,23.776884]
[1734827335089,1.03100849,181.91,181.83,31.26765808]
[1734827335293,20.0,181.94,181.86,31.26765808]
[1734827335479,1.03083193,181.95,181.87,31.26765808]
[1734827336189,1.03066071,181.96,181.87,31.26765808]
[1734827336496,1.03066071,181.96,181.88,31.26765808]
[1734827337162,1.03066071,181.96,181.89,31.26765808]
[1734827337362,1.03066071,181.96,181.88,31.26765808]
[1734827337981,1.03066071,181.96,181.86,31.26765808]
[1734827338389,1.03066071,181.96,181.87,31.26765808]
[1734827339611,1.03066071,181.96,181.88,31.26765808]
[1734827340410,1.03066071,181.96,181.85,31.26765808]
[1734827340913,20.0,181.94,181.83,31.26765808]
[1734827341090,1.03095835,181.93,181.81,31.26765808]
[1734827341291,23.776884,181.92,181.8,31.26765808]
[1734827341486,20.0,181.89,181.77,31.26765808]
[1734827341685,1.03121318,181.88,181.77,31.26765808]
[1734827342407,20.0,181.84,181.75,31.26765808]
[1734827342708,1.03144167,181.83,181.73,31.26765808]
[1734827343010,1.03144167,181.83,181.71,31.26765808]
[1734827343306,1.03144167,181.83,181.73,31.26765808]
[1734827343683,6.406,181.82,181.77,31.26765808]
[1734827344081,6.406,181.88,181.81,31.26765808]
[1734827344397,6.406,181.88,181.83,31.26765808]
[1734827346223,6.406,181.88,181.81,31.26765808]
[1734827346611,1.03104616,181.87,181.81,31.26765808]
[1734827346811,6.406,181.88,181.81,31.26765808]
[1734827347213,6.406,181.88,181.82,31.26765808]
[1734827348301,9.1545,181.92,181.82,31.26765808]
[1734827348510,1.03088947,181.91,181.84,31.26765808]
[1734827350318,20.0,181.89,181.79,31.26765808]
[1734827350630,1.0311165,181.88,181.79,31.26765808]
[1734827351816,1.0311165,181.88,181.8,31.26765808]
[1734827352209,1.0310435,181.91,181.83,31.26765808]
[1734827352408,1.0310435,181.91,181.84,31.26765808]
[1734827352734,6.406,181.92,181.77,23.776884]
[1734827352735,6.406,181.92,181.88,31.26765808]
[1734827353308,6.406,181.92,181.87,31.26765808]
[1734827354620,6.406,181.92,181.86,31.26765808]
[1734827355438,6.5002,181.96,181.87,31.26765808]
[1734827355734,6.5002,182.03,181.91,31.26765808]
[1734827355953,1.03039698,182.02,181.93,31.26765808]
[1734827356835,1.03039698,182.02,181.92,31.26765808]
[1734827357436,3.77739698,182.02,181.88,31.26765808]
[1734827357621,3.77739698,182.02,181.8,13.27793603]
[1734827357622,9.27129698,182.02,181.85,31.26765808]
[1734827357822,23.776884,181.97,181.85,31.26765808]
[1734827358051,20.0,181.94,181.86,31.26765808]
[1734827358211,20.0,181.94,181.82,13.7498]
[1734827358212,1.03075428,181.97,181.87,31.26765808]
[1734827361929,1.03075428,181.97,181.89,31.26765808]
[1734827362824,8.76708675,182.03,181.93,31.26765808]
[1734827362825,1.03060233,182.0,181.93,31.26765808]
[1734827363031,1.03034335,182.02,181.94,31.26765808]
[1734827363232,1.03034335,182.02,181.95,31.26765808]
[1734827363825,1.03034335,182.02,181.94,31.26765808]
[1734827364024,1.03034335,182.02,181.93,31.26765808]
[1734827364429,1.03034335,182.02,181.92,31.26765808]
[1734827364642,1.03034335,182.02,181.93,31.26765808]
[1734827364935,3.4504361,182.04,182.0,31.26765808]
[1734827364936,0.7038361,182.04,182.0,31.26765808]
[1734827366053,0.7038361,182.04,181.93,1.6474]
[1734827366054,0.7038361,182.04,182.03,1.6474]
[1734827366249,8.55607664,182.18,182.06,20.0]
[1734827366443,1.02938936,182.16,182.11,31.26765808]
[1734827366639,1.02946805,182.17,182.11,31.26765808]
[1734827367157,9.58546714,182.18,182.11,31.26765808]
[1734827367453,6.5002,182.19,182.11,31.26765808]
[1734827367668,6.5002,182.24,182.15,31.26765808]
[1734827367825,0.54625986,182.23,182.15,31.26765808]
[1734827368025,0.54625986,182.23,182.17,31.26765808]
[1734827368240,0.54625986,182.27,182.19,31.26765808]
[1734827368463,0.54625986,182.29,182.21,31.26765808]
[1734827369553,2.7424,182.33,182.19,31.26765808]
[1734827369753,0.54625986,182.32,182.18,31.26765808]
[1734827370053,2.7427,182.3,182.16,31.26765808]
[1734827370276,0.54625986,182.29,182.16,31.26765808]
[1734827370570,0.54625986,182.29,182.18,31.26765808]
[1734827371070,0.54625986,182.29,182.17,31.26765808]
[1734827371483,0.54625986,182.29,182.16,31.26765808]
[1734827372565,6.4244,182.24,182.14,31.26765808]
[1734827372772,0.54625986,182.21,182.14,31.26765808]
[1734827372981,0.54625986,182.21,182.16,31.26765808]
[1734827373491,0.54625986,182.23,182.16,31.26765808]
[1734827373653,0.54625986,182.21,182.16,31.26765808]
[1734827373982,0.54625986,182.26,182.16,31.26765808]
[1734827375552,0.54625986,182.26,182.18,31.26765808]
[1734827375873,0.54625986,182.28,182.18,31.26765808]
[1734827377020,3.28925986,182.28,182.16,31.26765808]
[1734827377298,0.7038361,182.4,182.21,32.87285808]
[1734827377299,0.54625986,182.31,182.21,32.87285808]
[1734827377504,0.82625986,182.35,182.21,33.69575304]
[1734827377804,0.54625986,182.35,182.21,33.69575304]
[1734827378798,0.54625986,182.35,182.27,31.26765808]
[1734827379084,0.54625986,182.36,182.27,31.26765808]
[1734827379414,0.28,182.35,182.27,31.26765808]
[1734827379719,0.54625986,182.34,182.27,31.26765808]
[1734827380103,0.54625986,182.34,182.25,31.26765808]
[1734827380409,24.32314386,182.34,182.25,31.26765808]
[1734827380786,20.0,182.31,182.23,31.26765808]
[1734827380990,24.32314386,182.3,182.21,31.26765808]
[1734827381311,0.54625986,182.3,182.21,31.26765808]
[1734827381511,44.32314386,182.33,182.21,31.26765808]
[1734827382880,44.32314386,182.33,182.23,31.26765808]
[1734827383285,0.54625986,182.33,182.23,31.26765808]
[1734827383721,24.32314386,182.33,182.23,31.26765808]
[1734827384831,24.32314386,182.33,182.25,31.26765808]
[1734827385200,0.54625986,182.33,182.25,31.26765808]
[1734827386126,0.54625986,182.33,182.24,31.26765808]
[1734827386307,20.0,182.3,182.22,31.26765808]
[1734827386512,0.54625986,182.29,182.22,31.26765808]
[1734827386827,20.0,182.3,182.22,31.26765808]
[1734827387129,6.97065986,182.29,182.22,31.26765808]
[1734827389643,6.97065986,182.29,182.2,31.26765808]
[1734827390429,6.97065986,182.29,182.18,31.26765808]
[1734827391440,6.97065986,182.29,182.2,31.26765808]
[1734827394634,20.0,182.26,182.17,31.26765808]
[1734827394804,0.54625986,182.25,182.15,31.26765808]
[1734827395132,24.32314386,182.25,182.14,31.26765808]
[1734827396105,27.06674386,182.25,182.14,31.26765808]
[1734827396407,27.06674386,182.25,182.15,31.26765808]
[1734827396909,27.06674386,182.25,182.14,31.26765808]
[1734827397306,6.4244,182.29,182.19,31.26765808]
[1734827397512,0.54625986,182.28,182.23,31.26765808]
[1734827397718,6.4244,182.29,182.23,31.26765808]
[1734827399412,0.54625986,182.33,182.23,31.26765808]
[1734827399943,24.32314386,182.33,182.23,31.26765808]
[1734827400130,24.32314386,182.33,182.21,31.26765808]
[1734827400341,23.776884,182.31,182.2,31.26765808]
[1734827400530,0.54625986,182.3,182.2,31.26765808]
[1734827400728,0.54625986,182.3,182.21,31.26765808]
[1734827401442,20.0,182.28,182.19,31.26765808]
[1734827401745,0.54625986,182.27,182.18,31.26765808]
[1734827402720,0.54625986,182.27,182.2,31.26765808]
[1734827402919,23.776884,182.31,182.16,13.7236]
[1734827402920,0.54625986,182.3,182.22,31.26765808]
[1734827405544,0.28,182.35,182.26,31.26765808]
[1734827405852,0.28,182.35,182.28,31.26765808]
[1734827408571,0.28,182.35,182.3,31.26765808]
[1734827409080,0.28,182.35,182.27,31.26765808]
[1734827409373,0.28,182.35,182.24,31.26765808]
[1734827409576,0.28,182.35,182.23,31.26765808]
[1734827409808,23.776884,182.32,182.19,31.26765808]
[1734827410099,0.54625986,182.31,182.19,31.26765808]
[1734827410302,0.54625986,182.31,182.2,31.26765808]
[1734827410801,0.54625986,182.31,182.23,31.26765808]
[1734827411013,0.54625986,182.32,182.23,31.26765808]
[1734827411898,0.54625986,182.32,182.24,31.26765808]
[1734827413005,24.32314386,182.32,182.21,31.26765808]
[1734827413306,24.32314386,182.32,182.2,31.26765808]
[1734827413678,24.32314386,182.32,182.21,31.26765808]
[1734827414074,2.7425,182.31,182.19,31.26765808]
[1734827414294,24.32314386,182.3,182.19,31.26765808]
[1734827414503,24.32314386,182.3,182.2,31.26765808]
[1734827415002,23.776884,182.26,182.16,31.26765808]
[1734827415205,23.776884,182.26,182.15,31.26765808]
[1734827415206,6.4604,182.24,182.15,31.26765808]
[1734827415385,6.4604,182.24,182.11,1.5892]
[1734827415386,0.54625986,182.23,182.14,31.26765808]
[1734827415991,24.32314386,182.23,182.13,31.26765808]
[1734827416189,24.32314386,182.23,182.12,31.26765808]
[1734827416394,23.776884,182.19,182.09,31.26765808]
[1734827416581,0.54625986,182.18,182.09,31.26765808]
[1734827416909,0.54625986,182.18,182.1,31.26765808]
[1734827417209,0.54625986,182.18,182.13,31.26765808]
[1734827417415,0.54625986,182.2,182.13,31.26765808]
[1734827417714,0.54625986,182.2,182.14,31.26765808]
[1734827418410,0.54625986,182.2,182.13,31.26765808]
[1734827418607,0.54625986,182.2,182.14,31.26765808]
[1734827418998,0.54625986,182.23,182.14,31.26765808]
[1734827420202,0.54625986,182.23,182.13,31.26765808]
[1734827420386,24.32314386,182.23,182.12,31.26765808]
[1734827420891,0.54625986,182.23,182.14,31.26765808]
[1734827421214,0.54625986,182.23,182.17,31.26765808]
[1734827421415,6.97115986,182.29,182.2,31.26765808]
[1734827421588,6.97115986,182.29,182.21,31.26765808]
[1734827421794,6.97115986,182.29,182.23,31.26765808]
[1734827422318,0.54625986,182.33,182.23,31.26765808]
[1734827422691,0.54625986,182.33,182.24,31.26765808]
[1734827424119,24.32314386,182.33,182.22,31.26765808]
[1734827424501,0.54625986,182.33,182.22,31.26765808]
[1734827425501,0.54625986,182.33,182.24,31.26765808]
[1734827427311,6.4249,182.34,182.26,31.26765808]
[1734827427612,0.28,182.35,182.28,31.26765808]
[1734827427813,0.28,182.35,182.3,31.26765808]
[1734827428009,0.28,182.35,182.33,30.95439438]
[1734827431054,0.28,182.35,182.34,31.77674937]
[1734827432115,0.28,182.35,182.34,45.48734937]
[1734827432525,0.28,182.35,182.34,30.95439438]
[1734827434341,0.28,182.35,182.34,31.77667369]
[1734827434714,0.28,182.35,182.34,30.95439438]
[1734827435719,0.28,182.35,182.34,31.77676078]
[1734827437427,0.28,182.35,182.34,30.95439438]
[1734827445328,0.7038361,182.4,182.35,13.7098]
[1734827445536,0.7038361,182.4,182.39,30.95439438]
[1734827448631,0.54625986,182.5,182.39,30.95439438]
[1734827448832,0.54625986,182.56,182.49,30.95439438]
[1734827449044,0.54625986,182.56,182.51,30.95439438]
[1734827449949,0.137,182.55,182.52,30.95439438]
[1734827450534,0.137,182.55,182.47,30.95439438]
[1734827450759,24.32314386,182.54,182.43,30.95439438]
[1734827451130,24.32314386,182.54,182.44,30.95439438]
[1734827451441,0.137,182.53,182.43,30.95439438]
[1734827452449,0.137,182.53,182.44,30.95439438]
[1734827452648,0.137,182.53,182.46,30.95439438]
[1734827452862,0.137,182.53,182.45,30.95439438]
[1734827453064,0.68325986,182.53,182.45,30.95439438]
[1734827453559,0.68325986,182.53,182.46,30.95439438]
[1734827453725,0.68325986,182.53,182.48,30.95439438]
[1734827453930,0.137,182.53,182.5,30.95439438]
[1734827454661,0.137,182.53,182.49,30.95439438]
[1734827456632,0.137,182.53,182.5,30.95439438]
[1734827456935,0.137,182.53,182.49,30.95439438]
[1734827457137,0.137,182.53,182.47,30.95439438]
[1734827457444,0.137,182.53,182.46,30.95439438]
[1734827457933,0.137,182.53,182.44,30.95439438]
[1734827458267,0.137,182.53,182.42,30.95439438]
[1734827458637,0.137,182.53,182.43,30.95439438]
[1734827458861,23.913884,182.53,182.41,30.95439438]
[1734827459063,24.32314386,182.52,182.42,30.95439438]
[1734827459438,23.913884,182.51,182.42,30.95439438]
[1734827459766,6.3903,182.49,182.39,30.95439438]
[1734827460066,24.32314386,182.48,182.37,30.95439438]
[1734827460269,0.54625986,182.48,182.41,30.95439438]
[1734827462668,0.54625986,182.48,182.42,30.95439438]
[1734827463179,0.54625986,182.48,182.41,30.95439438]
[1734827463393,2.7401,182.47,182.38,30.95439438]
[1734827463680,24.32314386,182.46,182.34,30.95439438]
[1734827463851,24.32314386,182.46,182.37,30.95439438]
[1734827464060,0.54625986,182.46,182.4,30.95439438]
[1734827464262,0.54625986,182.48,182.41,30.95439438]
[1734827464461,0.54625986,182.48,182.4,30.95439438]
[1734827465266,0.54625986,182.48,182.39,30.95439438]
[1734827465584,0.54625986,182.48,182.38,30.95439438]
[1734827466682,24.32314386,182.48,182.35,30.95439438]
[1734827466865,20.0,182.45,182.34,30.95439438]
[1734827467068,23.776884,182.4,182.29,30.95439438]
[1734827467264,0.54625986,182.39,182.29,30.95439438]
[1734827467461,20.0,182.37,182.26,30.95439438]
[1734827467650,6.3903,182.35,182.24,30.95439438]
[1734827467852,24.32314386,182.34,182.21,30.95439438]
[1734827468267,24.32314386,182.34,182.17,14.54606526]
[1734827468268,24.32314386,182.34,182.22,30.95439438]
[1734827468461,24.32314386,182.34,182.23,30.95439438]
[1734827468657,24.32314386,182.34,182.21,30.95439438]
[1734827469083,24.32314386,182.34,182.22,30.95439438]
[1734827469288,24.32314386,182.34,182.21,30.95439438]
[1734827469482,23.776884,182.32,182.2,30.95439438]